[Event "*** Titled Tuesday Blitz"]
[Site "Chess.com"]
[Date "2020.04.07"]
[Round "9"]
[White "bazar-wokzal"]
[Black "Sunnika"]
[Result "0-1"]
[WhiteElo "2514"]
[BlackElo "2385"]
[TimeControl "180+1"]
[EndTime "14:47:05 PDT"]
[Termination "Sunnika won on time"]

1. e4 {[%clk 0:03:00.9]} 1... Nf6 {[%clk 0:03:00.9]} 2. Nc3 {[%clk 0:02:59.9]}
2... d5 {[%clk 0:02:59.8]} 3. e5 {[%clk 0:03:00]} 3... Nfd7 {[%clk 0:03:00.2]}
4. e6 {[%clk 0:02:59.4]} 4... fxe6 {[%clk 0:03:00.5]} 5. d4 {[%clk 0:02:59.5]}
5... c5 {[%clk 0:02:55.6]} 6. Bd3 {[%clk 0:02:55.5]} 6... g6 {[%clk 0:02:54]} 7.
dxc5 {[%clk 0:02:54.8]} 7... Nxc5 {[%clk 0:02:52.4]} 8. Bb5+ {[%clk 0:02:50.9]}
8... Nc6 {[%clk 0:02:51.4]} 9. Qd4 {[%clk 0:02:49.5]} 9... e5 {[%clk 0:01:55.5]}
10. Qxc5 {[%clk 0:02:37.9]} 10... e6 {[%clk 0:01:55.5]} 11. Bxc6+ {[%clk
0:02:34.4]} 11... bxc6 {[%clk 0:01:54.7]} 12. Qxc6+ {[%clk 0:02:34.4]} 12... Bd7
{[%clk 0:01:53.4]} 13. Qa6 {[%clk 0:02:33]} 13... Rb8 {[%clk 0:01:47.5]} 14. Nf3
{[%clk 0:02:30.2]} 14... Bg7 {[%clk 0:01:46]} 15. O-O {[%clk 0:02:25.5]} 15...
e4 {[%clk 0:01:46.3]} 16. Ng5 {[%clk 0:02:19.1]} 16... Rb6 {[%clk 0:01:42.1]}
17. Qxa7 {[%clk 0:02:18.2]} 17... O-O {[%clk 0:01:33.6]} 18. a4 {[%clk
0:02:06.6]} 18... h6 {[%clk 0:01:03]} 19. a5 {[%clk 0:01:59.6]} 19... Rb4 {[%clk
0:00:50.4]} 20. Nh3 {[%clk 0:01:54.8]} 20... Bd4 {[%clk 0:00:49.4]} 21. Qa6
{[%clk 0:01:50.1]} 21... g5 {[%clk 0:00:45.7]} 22. Qe2 {[%clk 0:01:35.8]} 22...
Qf6 {[%clk 0:00:34.3]} 23. a6 {[%clk 0:01:28.9]} 23... Ba7 {[%clk 0:00:29.4]}
24. Be3 {[%clk 0:01:23.8]} 24... d4 {[%clk 0:00:26.4]} 25. Nxe4 {[%clk
0:01:22.5]} 25... Qe5 {[%clk 0:00:26.9]} 26. Bd2 {[%clk 0:01:19.7]} 26... Bb5
{[%clk 0:00:23.8]} 27. Qe1 {[%clk 0:01:07]} 27... Rxb2 {[%clk 0:00:22]} 28. Qc1
{[%clk 0:01:00.4]} 28... Bxf1 {[%clk 0:00:18.3]} 29. Qxb2 {[%clk 0:00:56.8]}
29... Bxg2 {[%clk 0:00:18.3]} 30. Nexg5 {[%clk 0:00:25]} 30... Bd5 {[%clk
0:00:17.1]} 31. Re1 {[%clk 0:00:15.6]} 31... Qf5 {[%clk 0:00:16.7]} 32. Bf4
{[%clk 0:00:06.7]} 32... hxg5 {[%clk 0:00:16.5]} 0-1

[Event "*** Titled Tuesday Blitz"]
[Site "Chess.com"]
[Date "2020.04.07"]
[Round "9"]
[White "Dare-Dare"]
[Black "GodDMuhammad"]
[Result "1/2-1/2"]
[WhiteElo "2170"]
[BlackElo "2311"]
[TimeControl "180+1"]
[EndTime "14:47:05 PDT"]
[Termination "Game drawn by agreement"]

1. Nf3 {[%clk 0:03:00.9]} 1... Nf6 {[%clk 0:02:59.5]} 2. c4 {[%clk 0:03:01.1]}
2... e6 {[%clk 0:02:59.5]} 3. Nc3 {[%clk 0:03:01.8]} 3... d5 {[%clk 0:02:59.8]}
4. e3 {[%clk 0:03:02.4]} 4... b6 {[%clk 0:02:59.5]} 5. b3 {[%clk 0:03:02.8]}
5... Bb7 {[%clk 0:02:59.9]} 6. Bb2 {[%clk 0:03:03.5]} 6... c5 {[%clk 0:03:00.2]}
7. d4 {[%clk 0:03:03.9]} 7... Nbd7 {[%clk 0:03:00.6]} 8. Bd3 {[%clk 0:03:04]}
8... Be7 {[%clk 0:03:00.9]} 9. O-O {[%clk 0:03:04.1]} 9... h6 {[%clk 0:03:01.5]}
10. Rc1 {[%clk 0:03:04.2]} 10... O-O {[%clk 0:03:01.8]} 11. Na4 {[%clk
0:03:03.9]} 11... dxc4 {[%clk 0:02:56.8]} 12. Bxc4 {[%clk 0:03:00.8]} 12... a6
{[%clk 0:02:47]} 13. Be2 {[%clk 0:02:59.9]} 13... cxd4 {[%clk 0:02:41.5]} 14.
Nxd4 {[%clk 0:03:00]} 14... b5 {[%clk 0:02:39.4]} 15. Nc3 {[%clk 0:02:59.4]}
15... Nb6 {[%clk 0:02:36.9]} 16. Bf3 {[%clk 0:02:59.4]} 16... Nbd5 {[%clk
0:02:34.3]} 17. Nxd5 {[%clk 0:02:45.2]} 17... Nxd5 {[%clk 0:02:35.2]} 18. Nc6
{[%clk 0:02:45.2]} 18... Bxc6 {[%clk 0:01:42.1]} 19. Rxc6 {[%clk 0:02:46.1]}
19... Nb4 {[%clk 0:01:42.7]} 20. Rc1 {[%clk 0:02:32.4]} 20... Rc8 {[%clk
0:01:32.9]} 21. a3 {[%clk 0:02:30.7]} 21... Rxc1 {[%clk 0:01:29.6]} 22. Bxc1
{[%clk 0:02:30.4]} 22... Nd3 {[%clk 0:01:26.7]} 23. b4 {[%clk 0:02:23.7]} 23...
Ne5 {[%clk 0:01:16.6]} 24. Be2 {[%clk 0:02:21]} 24... Qc7 {[%clk 0:01:08.9]} 25.
Bb2 {[%clk 0:02:20.9]} 25... Bf6 {[%clk 0:01:04]} 26. Qb3 {[%clk 0:02:14.2]}
26... Rd8 {[%clk 0:00:51.2]} 27. Rd1 {[%clk 0:02:12]} 27... Rxd1+ {[%clk
0:00:42.2]} 28. Bxd1 {[%clk 0:02:12.1]} 28... Qd6 {[%clk 0:00:34.9]} 29. h3
{[%clk 0:02:03.3]} 29... Qd2 {[%clk 0:00:28.9]} 30. Qc2 {[%clk 0:01:30.4]} 30...
Qxc2 {[%clk 0:00:19]} 31. Bxc2 {[%clk 0:01:31.3]} 31... Nf3+ {[%clk 0:00:19.9]}
32. gxf3 {[%clk 0:01:29.9]} 32... Bxb2 {[%clk 0:00:20.8]} 33. Be4 {[%clk
0:01:29]} 33... Bxa3 {[%clk 0:00:21.2]} 34. Bb7 {[%clk 0:01:29.6]} 34... Bxb4
{[%clk 0:00:18.1]} 35. Bxa6 {[%clk 0:01:29.3]} 35... Bc5 {[%clk 0:00:19]} 36.
Bxb5 {[%clk 0:01:29.8]} 36... Kf8 {[%clk 0:00:19.3]} 37. Kg2 {[%clk 0:01:30.2]}
37... Ke7 {[%clk 0:00:20.2]} 38. f4 {[%clk 0:01:30.8]} 38... e5 {[%clk
0:00:21.1]} 39. fxe5 {[%clk 0:01:30.5]} 39... Ke6 {[%clk 0:00:21.6]} 40. Bc4+
{[%clk 0:01:27.5]} 40... Ke7 {[%clk 0:00:21.9]} 41. Kf3 {[%clk 0:01:27.4]} 41...
Bb6 {[%clk 0:00:21.3]} 42. Ke4 {[%clk 0:01:27.6]} 42... g5 {[%clk 0:00:21]} 43.
Kf5 {[%clk 0:01:27.5]} 43... Ba7 {[%clk 0:00:18.7]} 44. Be2 {[%clk 0:01:24.1]}
44... Bc5 {[%clk 0:00:18.2]} 45. Bc4 {[%clk 0:01:19.4]} 45... Bb6 {[%clk
0:00:15.9]} 46. e6 {[%clk 0:01:19.7]} 46... fxe6+ {[%clk 0:00:14.2]} 47. Bxe6
{[%clk 0:01:20.4]} 47... Ba5 {[%clk 0:00:13.1]} 48. Bc4 {[%clk 0:01:15.4]} 48...
Be1 {[%clk 0:00:13.1]} 49. f3 {[%clk 0:01:15.8]} 49... Bd2 {[%clk 0:00:12.5]}
50. e4 {[%clk 0:01:16.1]} 50... h5 {[%clk 0:00:12.4]} 51. Kg6 {[%clk 0:01:03]}
51... h4 {[%clk 0:00:12.5]} 52. Kf5 {[%clk 0:01:03.3]} 52... Bf4 {[%clk
0:00:12.8]} 53. e5 {[%clk 0:01:01.4]} 53... Bc1 {[%clk 0:00:13.7]} 54. e6 {[%clk
0:00:51.9]} 54... Bf4 {[%clk 0:00:14.6]} 1/2-1/2

[Event "*** Titled Tuesday Blitz"]
[Site "Chess.com"]
[Date "2020.04.07"]
[Round "9"]
[White "Vusatiuk_Vladimir"]
[Black "Chigorinetz"]
[Result "1-0"]
[WhiteElo "2386"]
[BlackElo "2488"]
[TimeControl "180+1"]
[EndTime "14:47:07 PDT"]
[Termination "Vusatiuk_Vladimir won by checkmate"]

1. e4 {[%clk 0:03:00.9]} 1... c5 {[%clk 0:02:59.4]} 2. Nf3 {[%clk 0:02:53.4]}
2... Nc6 {[%clk 0:02:59]} 3. Bb5 {[%clk 0:02:47.9]} 3... g5 {[%clk 0:02:57.8]}
4. h3 {[%clk 0:02:30.2]} 4... Nf6 {[%clk 0:02:56.6]} 5. Nc3 {[%clk 0:02:26.2]}
5... Nd4 {[%clk 0:02:51]} 6. e5 {[%clk 0:02:22.2]} 6... g4 {[%clk 0:02:49.1]} 7.
Nxd4 {[%clk 0:02:19]} 7... cxd4 {[%clk 0:02:48.1]} 8. exf6 {[%clk 0:02:18.3]}
8... dxc3 {[%clk 0:02:47.7]} 9. Qxg4 {[%clk 0:02:12.4]} 9... Qb6 {[%clk
0:02:40.9]} 10. fxe7 {[%clk 0:01:57.9]} 10... Bxe7 {[%clk 0:02:39.5]} 11. a4
{[%clk 0:01:53.7]} 11... a6 {[%clk 0:02:31.4]} 12. dxc3 {[%clk 0:00:52.9]} 12...
axb5 {[%clk 0:02:29.8]} 13. O-O {[%clk 0:00:53.8]} 13... Qg6 {[%clk 0:02:16.1]}
14. Qd4 {[%clk 0:00:47.5]} 14... Rg8 {[%clk 0:02:12.7]} 15. g3 {[%clk
0:00:47.8]} 15... d5 {[%clk 0:01:46]} 16. Qxd5 {[%clk 0:00:39.6]} 16... Bd7
{[%clk 0:00:50.7]} 17. Re1 {[%clk 0:00:29.8]} 17... Ra6 {[%clk 0:00:50.1]} 18.
Qxb7 {[%clk 0:00:23.1]} 18... Re6 {[%clk 0:00:47.7]} 19. Qb8+ {[%clk 0:00:19.9]}
19... Bd8 {[%clk 0:00:47.6]} 20. Bf4 {[%clk 0:00:20.3]} 20... bxa4 {[%clk
0:00:41.4]} 21. Red1 {[%clk 0:00:20.7]} 21... f5 {[%clk 0:00:20]} 22. Bc7 {[%clk
0:00:20.5]} 22... Ke7 {[%clk 0:00:19.4]} 23. Rxd7+ {[%clk 0:00:18.2]} 23... Kxd7
{[%clk 0:00:17.6]} 24. Rd1+ {[%clk 0:00:18.7]} 24... Ke7 {[%clk 0:00:16.8]} 25.
Bxd8+ {[%clk 0:00:18.5]} 25... Kf7 {[%clk 0:00:15]} 26. Rd7+ {[%clk 0:00:13.9]}
26... Ke8 {[%clk 0:00:14.8]} 27. Qc8 {[%clk 0:00:07.4]} 27... Re1+ {[%clk
0:00:13.4]} 28. Kh2 {[%clk 0:00:07.9]} 28... Qe6 {[%clk 0:00:11.6]} 29. Bf6#
{[%clk 0:00:05.2]} 1-0

[Event "*** Titled Tuesday Blitz"]
[Site "Chess.com"]
[Date "2020.04.07"]
[Round "9"]
[White "Sibelephant"]
[Black "Anton_Demchenko"]
[Result "1-0"]
[WhiteElo "3148"]
[BlackElo "2952"]
[TimeControl "180+1"]
[EndTime "14:47:08 PDT"]
[Termination "Sibelephant won by resignation"]

1. Nf3 {[%clk 0:03:00.2]} 1... Nf6 {[%clk 0:03:00.2]} 2. g3 {[%clk 0:03:00.6]}
2... g6 {[%clk 0:03:00.5]} 3. Bg2 {[%clk 0:03:01]} 3... Bg7 {[%clk 0:03:01]} 4.
O-O {[%clk 0:03:01.6]} 4... O-O {[%clk 0:03:01.9]} 5. d4 {[%clk 0:03:02.2]} 5...
d6 {[%clk 0:03:02.3]} 6. Nc3 {[%clk 0:03:02.5]} 6... Nbd7 {[%clk 0:03:01.9]} 7.
a4 {[%clk 0:03:01.3]} 7... a5 {[%clk 0:03:01.1]} 8. e4 {[%clk 0:03:00.3]} 8...
e5 {[%clk 0:03:01.3]} 9. Re1 {[%clk 0:03:00]} 9... b6 {[%clk 0:03:01.6]} 10. Be3
{[%clk 0:02:48.1]} 10... Bb7 {[%clk 0:03:01.3]} 11. Nd2 {[%clk 0:02:46.3]} 11...
Re8 {[%clk 0:02:50.8]} 12. h3 {[%clk 0:02:38.6]} 12... h5 {[%clk 0:02:20.8]} 13.
Nc4 {[%clk 0:02:20.4]} 13... exd4 {[%clk 0:02:09]} 14. Bxd4 {[%clk 0:02:20.2]}
14... Ne5 {[%clk 0:02:09.3]} 15. Nd2 {[%clk 0:02:00.5]} 15... Rb8 {[%clk
0:01:46.2]} 16. Qe2 {[%clk 0:01:48.2]} 16... Nc6 {[%clk 0:01:45.4]} 17. Be3
{[%clk 0:01:46.6]} 17... Nb4 {[%clk 0:01:45.1]} 18. Qd1 {[%clk 0:01:33.5]} 18...
d5 {[%clk 0:01:40.5]} 19. Bg5 {[%clk 0:01:32.9]} 19... dxe4 {[%clk 0:01:32.3]}
20. Ncxe4 {[%clk 0:01:33]} 20... Bxe4 {[%clk 0:01:19.4]} 21. Bxe4 {[%clk
0:01:31.5]} 21... Qd6 {[%clk 0:00:42.5]} 22. Qf3 {[%clk 0:01:10.5]} 22... Nd7
{[%clk 0:00:24.5]} 23. Bf4 {[%clk 0:00:56.9]} 23... Be5 {[%clk 0:00:20.3]} 24.
Nc4 {[%clk 0:00:55.8]} 24... Qc5 {[%clk 0:00:17.4]} 25. Nxe5 {[%clk 0:00:55.2]}
25... Nxe5 {[%clk 0:00:17.9]} 26. Qb3 {[%clk 0:00:55.7]} 26... Nc4 {[%clk
0:00:10.5]} 27. Rad1 {[%clk 0:00:51.4]} 27... Rbd8 {[%clk 0:00:08.4]} 28. c3
{[%clk 0:00:43]} 28... Rxd1 {[%clk 0:00:07.8]} 29. Qxd1 {[%clk 0:00:43.9]} 29...
Nc6 {[%clk 0:00:05.8]} 30. Bg2 {[%clk 0:00:24.4]} 30... Rxe1+ {[%clk 0:00:05.2]}
31. Qxe1 {[%clk 0:00:25.3]} 31... Nd6 {[%clk 0:00:05.5]} 32. Bxd6 {[%clk
0:00:23.9]} 32... Qxd6 {[%clk 0:00:05.4]} 33. Qe8+ {[%clk 0:00:24.6]} 1-0

[Event "*** Titled Tuesday Blitz"]
[Site "Chess.com"]
[Date "2020.04.07"]
[Round "9"]
[White "mattcolins2025"]
[Black "Borsuk_Konstantin"]
[Result "0-1"]
[WhiteElo "2284"]
[BlackElo "2468"]
[TimeControl "180+1"]
[EndTime "14:47:09 PDT"]
[Termination "Borsuk_Konstantin won by resignation"]

1. d4 {[%clk 0:03:00.9]} 1... Nf6 {[%clk 0:02:59.2]} 2. c4 {[%clk 0:03:01.3]}
2... e6 {[%clk 0:02:59.7]} 3. Nc3 {[%clk 0:03:01.7]} 3... Bb4 {[%clk 0:02:59.9]}
4. Qc2 {[%clk 0:03:02.1]} 4... c5 {[%clk 0:02:58.5]} 5. dxc5 {[%clk 0:03:01.9]}
5... Bxc5 {[%clk 0:02:58.3]} 6. Nf3 {[%clk 0:03:01.7]} 6... O-O {[%clk
0:02:57.9]} 7. Bg5 {[%clk 0:03:01.7]} 7... Be7 {[%clk 0:02:57.2]} 8. e3 {[%clk
0:03:01.8]} 8... d6 {[%clk 0:02:57]} 9. Bd3 {[%clk 0:03:01.8]} 9... h6 {[%clk
0:02:55.7]} 10. Bh4 {[%clk 0:03:02.1]} 10... Nbd7 {[%clk 0:02:54.3]} 11. O-O
{[%clk 0:03:02]} 11... a6 {[%clk 0:02:54.5]} 12. b4 {[%clk 0:03:00.3]} 12... b6
{[%clk 0:02:49.5]} 13. a3 {[%clk 0:02:59.6]} 13... Bb7 {[%clk 0:02:49.7]} 14.
Qe2 {[%clk 0:02:59.7]} 14... Rc8 {[%clk 0:02:48.7]} 15. Rac1 {[%clk 0:02:59.7]}
15... Qc7 {[%clk 0:02:49.1]} 16. Rfd1 {[%clk 0:02:58.7]} 16... Qb8 {[%clk
0:02:49.5]} 17. Bg3 {[%clk 0:02:57.3]} 17... Rfd8 {[%clk 0:02:46]} 18. h3 {[%clk
0:02:53.7]} 18... Qa8 {[%clk 0:02:44.9]} 19. e4 {[%clk 0:02:50.3]} 19... Qb8
{[%clk 0:02:29.8]} 20. Bb1 {[%clk 0:02:48.7]} 20... Ne5 {[%clk 0:02:24.9]} 21.
Na4 {[%clk 0:02:36.9]} 21... Bc6 {[%clk 0:02:07.8]} 22. Nc3 {[%clk 0:02:24.1]}
22... Ba8 {[%clk 0:01:55.9]} 23. Ba2 {[%clk 0:02:14.5]} 23... Rd7 {[%clk
0:01:40.4]} 24. Bb3 {[%clk 0:01:50.6]} 24... g5 {[%clk 0:01:29.7]} 25. Ba4
{[%clk 0:01:47.6]} 25... Rdd8 {[%clk 0:01:29.1]} 26. Bb3 {[%clk 0:01:29.8]}
26... Nh5 {[%clk 0:01:28.2]} 27. Bh2 {[%clk 0:01:24.1]} 27... Nf4 {[%clk
0:01:17.8]} 28. Bxf4 {[%clk 0:01:24.3]} 28... gxf4 {[%clk 0:01:18.6]} 29. Nxe5
{[%clk 0:01:17.9]} 29... dxe5 {[%clk 0:01:18.6]} 30. Qh5 {[%clk 0:01:16.3]}
30... Kg7 {[%clk 0:01:16.2]} 31. Qg4+ {[%clk 0:01:04.3]} 31... Kh7 {[%clk
0:01:12.2]} 32. Qh5 {[%clk 0:01:04.4]} 32... Kg7 {[%clk 0:01:10.7]} 33. Qg4+
{[%clk 0:01:04.4]} 33... Kh7 {[%clk 0:01:08.8]} 34. Qh5 {[%clk 0:01:03.7]} 34...
Rf8 {[%clk 0:01:02.6]} 35. Rd7 {[%clk 0:01:02.8]} 35... Rce8 {[%clk 0:01:01.1]}
36. Rcd1 {[%clk 0:00:52.7]} 36... Bc6 {[%clk 0:01:00.1]} 37. R7d3 {[%clk
0:00:49.5]} 37... Rc8 {[%clk 0:00:55.9]} 38. b5 {[%clk 0:00:41.3]} 38... axb5
{[%clk 0:00:50.6]} 39. cxb5 {[%clk 0:00:41.6]} 39... Ba8 {[%clk 0:00:46.4]} 40.
Rd7 {[%clk 0:00:36.4]} 40... Rc7 {[%clk 0:00:40]} 41. Qxe5 {[%clk 0:00:23.6]}
41... Rxd7 {[%clk 0:00:38.7]} 42. Qh5 {[%clk 0:00:17.7]} 42... Rxd1+ {[%clk
0:00:38.2]} 43. Bxd1 {[%clk 0:00:18.1]} 43... Bf6 {[%clk 0:00:37]} 44. Bc2
{[%clk 0:00:17.1]} 44... Qe5 {[%clk 0:00:34.9]} 45. Qg4 {[%clk 0:00:15.4]} 45...
Rc8 {[%clk 0:00:33.9]} 46. Nd5 {[%clk 0:00:13.1]} 46... Bxd5 {[%clk 0:00:32.4]}
47. exd5+ {[%clk 0:00:12.6]} 47... Rxc2 {[%clk 0:00:32.5]} 0-1

[Event "*** Titled Tuesday Blitz"]
[Site "Chess.com"]
[Date "2020.04.07"]
[Round "9"]
[White "RD4ever"]
[Black "GM-AndreyOrlov"]
[Result "1-0"]
[WhiteElo "2846"]
[BlackElo "2646"]
[TimeControl "180+1"]
[EndTime "14:47:10 PDT"]
[Termination "RD4ever won on time"]

1. e4 {[%clk 0:03:00.9]} 1... d6 {[%clk 0:02:58.2]} 2. d4 {[%clk 0:03:00.3]}
2... Nf6 {[%clk 0:02:58.4]} 3. Nc3 {[%clk 0:03:00.4]} 3... e5 {[%clk 0:02:58.4]}
4. Nf3 {[%clk 0:03:00.3]} 4... Nbd7 {[%clk 0:02:58.2]} 5. Bc4 {[%clk 0:02:50]}
5... Be7 {[%clk 0:02:58.2]} 6. a4 {[%clk 0:02:50.6]} 6... O-O {[%clk 0:02:58.2]}
7. O-O {[%clk 0:02:46.1]} 7... c6 {[%clk 0:02:58.6]} 8. h3 {[%clk 0:02:46.2]}
8... a5 {[%clk 0:02:58]} 9. Re1 {[%clk 0:02:24]} 9... Nb6 {[%clk 0:02:57.7]} 10.
Ba2 {[%clk 0:02:16.9]} 10... Nfd7 {[%clk 0:02:57.8]} 11. dxe5 {[%clk 0:02:09]}
11... dxe5 {[%clk 0:02:55.3]} 12. Be3 {[%clk 0:02:09.1]} 12... Qc7 {[%clk
0:02:49.6]} 13. Ng5 {[%clk 0:02:06.5]} 13... Bxg5 {[%clk 0:02:29.9]} 14. Bxg5
{[%clk 0:02:07.4]} 14... Nc5 {[%clk 0:02:30.2]} 15. Be3 {[%clk 0:02:01.1]} 15...
Ncxa4 {[%clk 0:02:24.8]} 16. Nxa4 {[%clk 0:01:55.3]} 16... Nxa4 {[%clk
0:02:24.5]} 17. Bb3 {[%clk 0:01:55.9]} 17... Nb6 {[%clk 0:02:22]} 18. Bc5 {[%clk
0:01:54.9]} 18... Rd8 {[%clk 0:02:19.1]} 19. Qf3 {[%clk 0:01:48.5]} 19... Be6
{[%clk 0:02:17.7]} 20. Bxe6 {[%clk 0:01:30.6]} 20... fxe6 {[%clk 0:02:18.6]} 21.
Qb3 {[%clk 0:01:31.2]} 21... Nd7 {[%clk 0:02:18.6]} 22. Qxe6+ {[%clk 0:01:29.1]}
22... Kh8 {[%clk 0:02:18.9]} 23. Bd6 {[%clk 0:01:25.1]} 23... Qc8 {[%clk
0:01:40.7]} 24. Rad1 {[%clk 0:01:09.2]} 24... Re8 {[%clk 0:01:36.6]} 25. Qf5
{[%clk 0:01:08.5]} 25... a4 {[%clk 0:01:14.9]} 26. Rd3 {[%clk 0:00:58.3]} 26...
Nb6 {[%clk 0:01:07.2]} 27. Bxe5 {[%clk 0:00:49.6]} 27... Qxf5 {[%clk 0:01:06.5]}
28. exf5 {[%clk 0:00:50.5]} 28... Nc4 {[%clk 0:01:06.6]} 29. f4 {[%clk
0:00:50.4]} 29... Nxb2 {[%clk 0:00:48.7]} 30. Rd7 {[%clk 0:00:48.8]} 30... a3
{[%clk 0:00:39.1]} 31. Bxg7+ {[%clk 0:00:41.9]} 31... Kg8 {[%clk 0:00:39]} 32.
Rxe8+ {[%clk 0:00:42.5]} 32... Rxe8 {[%clk 0:00:38.4]} 33. f6 {[%clk 0:00:43.4]}
33... Re1+ {[%clk 0:00:31.9]} 34. Kf2 {[%clk 0:00:27.5]} 34... a2 {[%clk
0:00:24.9]} 35. Bh6 {[%clk 0:00:26.6]} 35... Rf1+ {[%clk 0:00:09.2]} 36. Kg3
{[%clk 0:00:26.9]} 36... Rxf4 {[%clk 0:00:01.9]} 37. Kxf4 {[%clk 0:00:27.8]}
37... Nd3+ {[%clk 0:00:02.3]} 38. cxd3 {[%clk 0:00:27.2]} 1-0

[Event "*** Titled Tuesday Blitz"]
[Site "Chess.com"]
[Date "2020.04.07"]
[Round "9"]
[White "AlleyOoper"]
[Black "Nastya_Rakhmangulova"]
[Result "1-0"]
[WhiteElo "2506"]
[BlackElo "2370"]
[TimeControl "180+1"]
[EndTime "14:47:12 PDT"]
[Termination "AlleyOoper won by checkmate"]

1. d4 {[%clk 0:03:00.9]} 1... d5 {[%clk 0:02:59.7]} 2. Bf4 {[%clk 0:02:58.9]}
2... Nf6 {[%clk 0:02:59.1]} 3. e3 {[%clk 0:02:59.3]} 3... c5 {[%clk 0:02:58.9]}
4. Nf3 {[%clk 0:02:59.6]} 4... e6 {[%clk 0:02:59.2]} 5. Nbd2 {[%clk 0:03:00.1]}
5... Nc6 {[%clk 0:02:59.5]} 6. c3 {[%clk 0:03:00.6]} 6... Bd6 {[%clk 0:02:59]}
7. Bg3 {[%clk 0:03:00.2]} 7... O-O {[%clk 0:02:59.6]} 8. Bd3 {[%clk 0:03:00.8]}
8... b6 {[%clk 0:02:59.9]} 9. Qe2 {[%clk 0:03:00.7]} 9... Bb7 {[%clk 0:02:58.3]}
10. Rd1 {[%clk 0:03:00.7]} 10... Re8 {[%clk 0:02:24.9]} 11. e4 {[%clk
0:02:58.3]} 11... Be7 {[%clk 0:02:24.8]} 12. e5 {[%clk 0:02:56.6]} 12... Nh5
{[%clk 0:02:24.2]} 13. h4 {[%clk 0:02:53.2]} 13... Nxg3 {[%clk 0:02:23.7]} 14.
fxg3 {[%clk 0:02:53]} 14... cxd4 {[%clk 0:02:15.3]} 15. Nxd4 {[%clk 0:02:53.1]}
15... Qc7 {[%clk 0:01:57.1]} 16. N2f3 {[%clk 0:02:50.6]} 16... Nxd4 {[%clk
0:01:46.5]} 17. cxd4 {[%clk 0:02:49.5]} 17... h6 {[%clk 0:01:44.5]} 18. O-O
{[%clk 0:02:48.9]} 18... Rf8 {[%clk 0:01:30.4]} 19. Ng5 {[%clk 0:02:39.5]} 19...
hxg5 {[%clk 0:01:28.7]} 20. Qh5 {[%clk 0:02:39.3]} 20... g6 {[%clk 0:01:20.8]}
21. Bxg6 {[%clk 0:02:38.5]} 21... fxg6 {[%clk 0:01:21]} 22. Qxg6+ {[%clk
0:02:38.1]} 22... Kh8 {[%clk 0:01:21.1]} 23. Qh6+ {[%clk 0:02:37.2]} 23... Kg8
{[%clk 0:01:20.8]} 24. Qg6+ {[%clk 0:02:26.1]} 24... Kh8 {[%clk 0:01:20.8]} 25.
Qh6+ {[%clk 0:02:10.4]} 25... Kg8 {[%clk 0:01:20.9]} 26. hxg5 {[%clk 0:01:19.2]}
26... Ba6 {[%clk 0:00:33.5]} 27. Qxe6+ {[%clk 0:01:14]} 27... Kg7 {[%clk
0:00:32.4]} 28. Qh6+ {[%clk 0:01:13.7]} 28... Kg8 {[%clk 0:00:30.2]} 29. Qg6+
{[%clk 0:00:55]} 29... Kh8 {[%clk 0:00:29.8]} 30. Qh6+ {[%clk 0:00:28.6]} 30...
Kg8 {[%clk 0:00:29.5]} 31. Qe6+ {[%clk 0:00:28.6]} 31... Kg7 {[%clk 0:00:28.4]}
32. Rf6 {[%clk 0:00:22.6]} 32... Bxf6 {[%clk 0:00:22.9]} 33. exf6+ {[%clk
0:00:17.6]} 33... Kg6 {[%clk 0:00:11.9]} 34. f7+ {[%clk 0:00:14.6]} 34... Kg7
{[%clk 0:00:12.3]} 35. Qf6+ {[%clk 0:00:13.6]} 35... Kh7 {[%clk 0:00:10]} 36.
Qh6# {[%clk 0:00:13.6]} 1-0

[Event "*** Titled Tuesday Blitz"]
[Site "Chess.com"]
[Date "2020.04.07"]
[Round "9"]
[White "rugbyclub"]
[Black "m-garcett"]
[Result "1-0"]
[WhiteElo "2110"]
[BlackElo "1902"]
[TimeControl "180+1"]
[EndTime "14:47:14 PDT"]
[Termination "rugbyclub won by resignation"]

1. c4 {[%clk 0:02:58.2]} 1... Nf6 {[%clk 0:02:59.6]} 2. Nc3 {[%clk 0:02:58.3]}
2... g6 {[%clk 0:02:59.8]} 3. e4 {[%clk 0:02:57]} 3... d6 {[%clk 0:02:58.5]} 4.
d4 {[%clk 0:02:56.6]} 4... Bg7 {[%clk 0:02:57.9]} 5. f4 {[%clk 0:02:57]} 5...
O-O {[%clk 0:02:56.7]} 6. Nf3 {[%clk 0:02:57.4]} 6... c5 {[%clk 0:02:56.1]} 7.
d5 {[%clk 0:02:57.3]} 7... Bg4 {[%clk 0:02:54.8]} 8. h3 {[%clk 0:02:53.2]} 8...
Bxf3 {[%clk 0:02:54.2]} 9. Qxf3 {[%clk 0:02:53.6]} 9... e6 {[%clk 0:02:54.5]}
10. dxe6 {[%clk 0:02:49.6]} 10... fxe6 {[%clk 0:02:54.2]} 11. Bd3 {[%clk
0:02:50.1]} 11... Nc6 {[%clk 0:02:51]} 12. O-O {[%clk 0:02:49.1]} 12... Nd4
{[%clk 0:02:42]} 13. Qf2 {[%clk 0:02:48.9]} 13... d5 {[%clk 0:02:33.7]} 14. e5
{[%clk 0:02:38.7]} 14... Nh5 {[%clk 0:02:14.5]} 15. g4 {[%clk 0:02:15.4]} 15...
Nxf4 {[%clk 0:01:57.3]} 16. Bxf4 {[%clk 0:02:07.9]} 16... g5 {[%clk 0:01:48.1]}
17. cxd5 {[%clk 0:01:55.8]} 17... Rxf4 {[%clk 0:01:42.9]} 18. Qg2 {[%clk
0:01:54.7]} 18... Bxe5 {[%clk 0:01:37.9]} 19. dxe6 {[%clk 0:01:49.2]} 19... Nxe6
{[%clk 0:01:34.7]} 20. Rad1 {[%clk 0:01:43.8]} 20... Rd4 {[%clk 0:01:30.9]} 21.
Bc4 {[%clk 0:01:36.3]} 21... Qe7 {[%clk 0:01:01.3]} 22. Rde1 {[%clk 0:01:35.3]}
22... Rxc4 {[%clk 0:00:43.4]} 23. Qd5 {[%clk 0:01:18.2]} 23... Qd6 {[%clk
0:00:29.5]} 24. Qxc4 {[%clk 0:00:59.6]} 24... Re8 {[%clk 0:00:20.2]} 25. Ne4
{[%clk 0:00:55.2]} 25... Bd4+ {[%clk 0:00:17.6]} 26. Kh1 {[%clk 0:00:54]} 26...
Qc6 {[%clk 0:00:15.4]} 27. Kh2 {[%clk 0:00:48.2]} 27... Kg7 {[%clk 0:00:15]} 28.
Rf5 {[%clk 0:00:41.7]} 28... h6 {[%clk 0:00:13.2]} 29. Ng3 {[%clk 0:00:32.6]}
29... Nf4 {[%clk 0:00:12.2]} 30. Qf7+ {[%clk 0:00:21.5]} 30... Kh8 {[%clk
0:00:12]} 31. Rxe8+ {[%clk 0:00:19.8]} 1-0